bitfinex-derivatives/quotes_BTCF0:USTF0_20250325
["timestamp","ask_amount","ask_price","bid_price","bid_amount"]
[1742900541873,0.1468458,87291.0,87290.0,0.692575]
[1742900542072,0.1468458,87291.0,87290.0,0.442575]
[1742900542272,0.1468458,87291.0,87290.0,0.763775]
[1742900542474,0.1468458,87291.0,87290.0,0.503775]
[1742900543074,0.1468458,87291.0,87290.0,0.773775]
[1742900543488,0.1468458,87291.0,87290.0,0.763775]
[1742900544280,0.1468458,87291.0,87290.0,0.503775]
[1742900545869,0.1468458,87291.0,87290.0,0.773775]
[1742900546075,0.1468458,87291.0,87290.0,0.783775]
[1742900546277,0.1468458,87291.0,87290.0,0.503775]
[1742900546584,0.1468458,87291.0,87290.0,0.763775]
[1742900546885,0.1468458,87291.0,87290.0,0.743775]
[1742900547487,0.1468458,87291.0,87290.0,0.763775]
[1742900547679,0.1468458,87291.0,87290.0,0.743775]
[1742900547982,0.1468458,87291.0,87290.0,0.763775]
[1742900549484,0.0309,87295.0,87294.0,0.1145416]
[1742900549485,0.1454413,87295.0,87294.0,0.1145416]
[1742900549686,0.1462413,87295.0,87294.0,0.7361416]
[1742900549987,0.1462413,87295.0,87294.0,0.5090416]
[1742900550180,0.1462413,87295.0,87294.0,0.7490416]
[1742900550381,0.1769413,87295.0,87294.0,0.7490416]
[1742900550894,0.2079413,87295.0,87294.0,0.7810416]
[1742900551280,0.2079413,87295.0,87294.0,1.0210416]
[1742900551484,0.2079413,87295.0,87294.0,0.7810416]
[1742900551485,0.2071413,87295.0,87294.0,0.7810416]
[1742900552491,0.2071413,87295.0,87294.0,0.79251196]
[1742900552690,0.2071413,87295.0,87294.0,1.05251196]
[1742900552988,0.2071413,87295.0,87294.0,0.79251196]
[1742900554495,0.2071413,87295.0,87294.0,0.80251196]
[1742900554682,0.2071413,87295.0,87294.0,1.08251196]
[1742900554883,0.2071413,87295.0,87294.0,1.04251196]
[1742900555185,0.2071413,87295.0,87294.0,0.80251196]
[1742900555384,0.2071413,87295.0,87294.0,1.05251196]
[1742900555588,0.2071413,87295.0,87294.0,0.80251196]
[1742900557085,0.2071413,87295.0,87294.0,1.08251196]
[1742900557290,0.2071413,87295.0,87294.0,1.09251196]
[1742900557485,8e-05,87296.0,87295.0,0.1145403]
[1742900557687,8e-05,87296.0,87295.0,0.3982003]
[1742900557886,0.0319,87299.0,87298.0,0.1145364]
[1742900558086,0.03266,87299.0,87298.0,0.6252964]
[1742900558288,0.1471951,87299.0,87298.0,0.6894964]
[1742900558498,0.1471951,87299.0,87298.0,0.6694964]
[1742900558792,0.03266,87299.0,87298.0,0.7194964]
[1742900558991,0.03266,87299.0,87298.0,0.6794964]
[1742900559193,0.03266,87299.0,87298.0,0.6994964]
[1742900560297,0.03266,87299.0,87298.0,0.7294964]
[1742900560483,0.03266,87299.0,87298.0,0.7626964]
[1742900560690,0.03266,87299.0,87298.0,0.4726964]
[1742900561197,0.00076,87299.0,87298.0,0.7426964]
[1742900561793,0.03126,87299.0,87298.0,0.7426964]
[1742900562091,0.03126,87299.0,87298.0,0.4726964]
[1742900562496,0.03126,87299.0,87298.0,0.7026964]
[1742900563286,0.03126,87299.0,87298.0,0.4726964]
[1742900563595,0.03126,87299.0,87298.0,0.7226964]
[1742900563788,0.03126,87299.0,87298.0,0.7526964]
[1742900563987,0.03126,87299.0,87298.0,0.7226964]
[1742900564187,0.03126,87299.0,87298.0,0.4726964]
[1742900564388,0.03126,87299.0,87298.0,0.7626964]
[1742900564588,0.03126,87299.0,87298.0,0.4726964]
[1742900564886,0.03126,87299.0,87298.0,0.7426964]
[1742900565687,0.03126,87299.0,87298.0,0.7526964]
[1742900565886,0.03126,87299.0,87298.0,0.7126964]
[1742900566294,0.0305,87299.0,87298.0,0.4726964]
[1742900566594,0.0313,87299.0,87298.0,0.7026964]
[1742900567796,0.0313,87299.0,87298.0,0.4726964]
[1742900567996,0.0313,87299.0,87298.0,0.7326964]
[1742900568488,0.0305,87299.0,87298.0,0.7326964]
[1742900568682,0.03126,87299.0,87298.0,0.4726964]
[1742900568888,0.03126,87299.0,87298.0,0.7126964]
[1742900569089,0.03126,87299.0,87298.0,0.7226964]
[1742900569887,0.03126,87299.0,87298.0,0.7126964]
[1742900570496,0.03126,87299.0,87298.0,0.7026964]
[1742900570698,0.03126,87299.0,87298.0,0.7636964]
[1742900570902,0.03126,87299.0,87298.0,0.4736964]
[1742900571097,0.03126,87299.0,87298.0,0.7436964]
[1742900571697,0.03126,87299.0,87298.0,0.4736964]
[1742900571999,0.03126,87299.0,87298.0,0.7236964]
[1742900572795,0.00076,87299.0,87298.0,0.7236964]
[1742900573296,0.10008,87300.0,87299.0,0.1145351]
[1742900573493,0.10008,87300.0,87299.0,0.6452951]
[1742900573793,0.10008,87300.0,87299.0,0.7079951]
[1742900574500,0.1,87300.0,87299.0,0.7079951]
[1742900574999,0.0572466,87331.0,87319.0,0.1145088]
[1742900575201,0.84890042,87336.0,87319.0,0.1145088]
[1742900575202,0.1451075,87320.0,87319.0,0.7053088]
[1742900575390,0.1451075,87320.0,87319.0,0.7060688]
[1742900575586,0.1771075,87320.0,87319.0,0.4760688]
[1742900576498,0.20940751,87320.0,87319.0,0.4760688]
[1742900576797,0.20940751,87320.0,87319.0,0.48748102]
[1742900577997,0.0573331,87321.0,87320.0,0.1145075]
[1742900577998,8e-05,87321.0,87320.0,0.1145075]
[1742900578196,0.00068,87321.0,87320.0,0.6217612]
[1742900578403,0.0311,87324.0,87323.0,0.1145036]
[1742900578701,0.03202,87324.0,87323.0,0.4454236]
[1742900579797,0.06342,87324.0,87323.0,0.4454236]
[1742900579994,0.06342,87324.0,87323.0,0.5254236]
[1742900580299,0.06342,87324.0,87323.0,0.2754236]
[1742900580699,0.0625,87324.0,87323.0,0.2754236]
[1742900580915,0.0625,87324.0,87323.0,0.1154236]
[1742900581091,0.09372,87324.0,87323.0,0.1154236]
[1742900582799,0.2082223,87324.0,87323.0,0.00092]
[1742900587304,0.30574298,87324.0,87323.0,0.00092]
[1742900590705,0.2082223,87324.0,87323.0,0.00092]
[1742900591004,0.2082223,87324.0,87297.0,0.3608]
[1742900591005,0.114518,87312.0,87303.0,0.3608]
[1742900591207,0.22487801,87312.0,87303.0,0.3608]
[1742900591408,0.1145285,87304.0,87303.0,0.3608]
[1742900591708,0.1152485,87304.0,87303.0,0.36144]
[1742900591897,0.1801485,87304.0,87303.0,0.36144]
[1742900592094,0.19190136,87304.0,87303.0,0.00064]
[1742900592301,0.114539,87296.0,87295.0,0.00045821]
[1742900592497,0.115179,87296.0,87295.0,0.00126999]
[1742900592806,0.179579,87296.0,87295.0,0.00126999]
[1742900593001,0.212279,87296.0,87295.0,0.00126999]
[1742900593199,0.212279,87296.0,87295.0,0.00062999]
[1742900593599,0.1145455,87291.0,87290.0,0.20604164]
[1742900593799,0.1145521,87286.0,87270.0,0.3608]
[1742900593995,0.1152321,87286.0,87285.0,0.22899701]
[1742900594199,0.1152321,87286.0,87285.0,0.17909701]
[1742900594504,0.1152321,87286.0,87279.0,0.0004583]
[1742900594505,0.11456,87280.0,87279.0,0.0004583]
[1742900594705,0.1145731,87270.0,87269.0,0.23666159]
[1742900595011,0.11569311,87270.0,87269.0,0.23726159]
[1742900595609,0.22545311,87270.0,87269.0,0.20516159]
[1742900597313,0.25645311,87270.0,87269.0,0.20516159]
[1742900597500,0.25645311,87270.0,87269.0,0.21116159]
[1742900598101,0.25645311,87270.0,87269.0,0.20516159]
[1742900598306,0.25645311,87270.0,87269.0,0.20616159]
[1742900598502,0.14669311,87270.0,87269.0,0.0016]
[1742900598813,0.25645311,87270.0,87269.0,0.1155744]
[1742900599106,0.00112001,87270.0,87269.0,0.001]
[1742900599304,0.14739311,87270.0,87269.0,0.1155744]
[1742900599515,0.14739311,87270.0,87269.0,1.6462744]
[1742900599700,0.14739311,87270.0,87269.0,1.6784144]
[1742900599899,0.14739311,87270.0,87269.0,1.6778144]
[1742900600302,0.14739311,87270.0,87269.0,1.56324]
[1742900600599,0.14739311,87270.0,87269.0,1.53174]
[1742900600810,0.14739311,87270.0,87269.0,0.03174]
[1742900601004,0.14739311,87270.0,87269.0,0.0311]
[1742900601204,0.14739311,87270.0,87269.0,0.0317]
[1742900601407,0.17879311,87270.0,87269.0,0.0317]
[1742900602109,0.17879311,87270.0,87269.0,0.0311]
[1742900602310,0.17879311,87270.0,87269.0,0.0317]
[1742900602809,0.17879311,87270.0,87269.0,0.0311]
[1742900603602,0.17879311,87270.0,87269.0,0.03178]
[1742900604007,0.17879311,87270.0,87269.0,0.0311]
[1742900604407,0.17879311,87270.0,87269.0,0.001]
[1742900604603,0.20999311,87270.0,87269.0,0.001]
[1742900606414,0.17879311,87270.0,87269.0,0.001]
[1742900606718,0.14739311,87270.0,87269.0,0.3962544]
[1742900606923,0.11569311,87270.0,87269.0,0.1162544]
[1742900607110,0.11569311,87270.0,87269.0,0.001]
[1742900607307,0.11569311,87270.0,87269.0,0.00164]
[1742900607613,0.11569311,87270.0,87269.0,0.0661]
[1742900607819,0.11569311,87270.0,87269.0,0.0667]
[1742900608020,0.18089311,87270.0,87269.0,0.0661]
[1742900608221,0.18089311,87270.0,87269.0,0.06722]
[1742900609224,0.14759311,87270.0,87269.0,0.0661]
[1742900609413,0.14759311,87270.0,87269.0,0.8220744]
[1742900609613,0.14759311,87270.0,87269.0,0.7175]
[1742900609816,0.14759311,87270.0,87269.0,0.9775]
[1742900610019,0.14759311,87270.0,87269.0,0.7175]
[1742900610323,0.14759311,87270.0,87269.0,0.4275]
[1742900610819,0.11569311,87270.0,87269.0,0.4275]
[1742900611419,0.11569311,87270.0,87269.0,0.5420744]
[1742900611815,0.11569311,87270.0,87269.0,0.4275]
[1742900612010,0.11569311,87270.0,87269.0,0.6575]
[1742900612221,0.11569311,87270.0,87269.0,0.4275]
[1742900612417,0.14659311,87270.0,87269.0,0.7075]
[1742900612623,0.14659311,87270.0,87269.0,0.4275]
[1742900613221,0.11569311,87270.0,87269.0,0.5420744]
[1742900613529,0.11569311,87270.0,87269.0,0.7720744]
[1742900613828,0.11569311,87270.0,87269.0,0.5420744]
[1742900614025,0.11569311,87270.0,87269.0,0.4275]
[1742900614229,0.11569311,87270.0,87269.0,0.5420744]
[1742900614530,0.14779311,87270.0,87269.0,0.4275]
[1742900615429,0.14779311,87270.0,87269.0,0.5420744]
[1742900615727,0.14779311,87270.0,87269.0,0.4275]
[1742900616130,0.14779311,87270.0,87269.0,0.5420744]
[1742900616830,0.14779311,87270.0,87269.0,0.4275]
[1742900617032,0.17889311,87270.0,87269.0,0.4275]
[1742900617232,0.11569311,87270.0,87269.0,1.0720744]
[1742900617424,0.00112001,87270.0,87269.0,1.0520744]
[1742900617615,0.00112001,87270.0,87269.0,0.8120744]
[1742900617820,0.11569311,87270.0,87269.0,0.8120744]
[1742900618522,0.11569311,87270.0,87269.0,1.0720744]
[1742900618731,0.11569311,87270.0,87269.0,0.8120744]
[1742900618933,0.00112001,87270.0,87269.0,0.8120744]
[1742900619231,0.0573651,87273.0,87269.0,0.8120744]
[1742900619232,8e-05,87273.0,87272.0,0.1145705]
[1742900619533,0.1718381,87282.0,87281.0,0.1145574]
[1742900619733,0.1718381,87282.0,87281.0,0.4759574]
[1742900619734,0.17295811,87282.0,87281.0,0.4759574]
[1742900619925,0.2049381,87282.0,87281.0,0.4759574]
[1742900620527,0.20605811,87282.0,87281.0,0.4759574]
[1742900621028,0.20605811,87282.0,87281.0,0.3614]
[1742900621435,0.23785811,87282.0,87281.0,0.3614]
[1742900621734,0.23785811,87282.0,87281.0,0.0006]
[1742900621936,0.23785811,87282.0,87272.0,0.3608]
[1742900621937,0.1718531,87274.0,87272.0,0.3608]
[1742900622139,0.1794692,87273.0,87272.0,0.4760473]
[1742900622335,0.18058921,87273.0,87272.0,0.4760473]
[1742900623642,0.18058921,87273.0,87272.0,0.1152473]
[1742900625835,0.18058921,87273.0,87272.0,0.3652473]
[1742900626044,0.18058921,87273.0,87272.0,0.1152473]
[1742900626631,0.18058921,87273.0,87272.0,0.3552473]
[1742900626935,0.18058921,87273.0,87272.0,0.3752473]
[1742900627141,0.14878921,87273.0,87272.0,0.1152473]
[1742900627945,0.17918921,87273.0,87272.0,0.1152473]
[1742900629438,0.1780692,87273.0,87272.0,0.1152473]
[1742900629739,0.17918921,87273.0,87272.0,0.1152473]
[1742900631847,0.17918921,87273.0,87272.0,0.00068]
[1742900635732,0.114581,87264.0,87263.0,0.00045838]
[1742900635933,0.11570101,87264.0,87263.0,0.00113838]
[1742900636136,0.21270101,87264.0,87263.0,0.00113838]
[1742900636834,0.2240474,87264.0,87263.0,0.00313838]
[1742900637035,0.21270101,87264.0,87263.0,0.00313838]
[1742900638137,0.21270101,87264.0,87263.0,0.00513838]
[1742900638942,0.114602,87248.0,87247.0,0.00045847]
[1742900639239,0.115922,87248.0,87247.0,0.00113847]
[1742900639544,0.210322,87248.0,87247.0,0.00113847]
[1742900640044,0.21892829,87248.0,87247.0,0.00113847]
[1742900640543,0.21892829,87248.0,87247.0,0.00713847]
[1742900641148,0.21892829,87248.0,87247.0,0.01213847]
[1742900641648,0.57972829,87248.0,87247.0,0.01213847]
[1742900641848,0.57972829,87248.0,87247.0,0.00145847]
[1742900642034,0.57972829,87248.0,87247.0,0.00345847]
[1742900642241,0.1146125,87240.0,87239.0,0.00017188]
[1742900642546,0.5878525,87240.0,87239.0,0.00017188]
[1742900642745,0.114623,87232.0,87228.0,0.0305]
[1742900642950,0.115983,87232.0,87228.0,0.0305]
[1742900643649,0.180683,87232.0,87228.0,0.0305]
[1742900643846,0.180683,87232.0,87231.0,0.00105855]
[1742900644251,0.180683,87232.0,87231.0,0.00045855]
[1742900644448,0.541483,87232.0,87231.0,0.00045855]
[1742900645341,0.541483,87232.0,87231.0,0.00645855]
[1742900645546,0.541483,87232.0,87231.0,0.01145855]
[1742900648351,0.00136,87232.0,87231.0,0.53608285]
[1742900648651,0.17115711,87234.0,87233.0,0.1146217]
[1742900648841,0.17247711,87234.0,87233.0,1.8746217]
[1742900649236,0.28577751,87234.0,87233.0,1.8753017]
[1742900649440,0.25125472,87234.0,87233.0,1.8746217]
[1742900649648,0.13663432,87234.0,87233.0,2.1246217]
[1742900649861,0.13663432,87234.0,87233.0,2.1346217]
[1742900650153,0.13663432,87234.0,87233.0,1.8746217]
[1742900650355,0.1720053,87237.0,87236.0,0.1146178]
[1742900650356,8e-05,87237.0,87236.0,0.1146178]
[1742900650652,0.28576961,87240.0,87239.0,0.1146138]
[1742900650842,0.28584961,87240.0,87239.0,0.9554138]
[1742900651043,0.28584961,87240.0,87239.0,0.7154138]
[1742900651237,0.28584961,87240.0,87239.0,0.9454138]
[1742900651439,0.28584961,87240.0,87239.0,1.0063138]
[1742900651653,0.28584961,87240.0,87239.0,1.0663138]
[1742900651855,0.28584961,87240.0,87239.0,1.0463138]
[1742900652043,0.28584961,87240.0,87239.0,0.4217]
[1742900652244,0.28584961,87240.0,87239.0,0.0336]
[1742900652547,0.34914961,87240.0,87239.0,0.003]
[1742900653339,0.1779925,87240.0,87239.0,0.003]
[1742900653743,0.1779925,87240.0,87239.0,0.006]
[1742900653944,0.0573102,87234.0,87231.0,0.00045855]
[1742900654150,0.114623,87232.0,87231.0,0.00045855]
[1742900654351,0.115943,87232.0,87231.0,0.00045855]
[1742900654547,0.180743,87232.0,87231.0,0.00045855]
[1742900655256,0.292103,87232.0,87231.0,0.28045855]
[1742900655450,0.292103,87232.0,87231.0,0.00605855]
[1742900655649,0.292103,87232.0,87231.0,0.00545855]
[1742900655852,0.180743,87232.0,87231.0,0.72088285]
[1742900656048,0.180743,87232.0,87231.0,0.36685855]
[1742900656446,0.180743,87232.0,87231.0,0.37185855]
[1742900656643,0.180743,87232.0,87231.0,0.54918285]
[1742900657045,0.149043,87232.0,87231.0,0.54918285]
[1742900657246,0.115943,87232.0,87231.0,0.79918285]
[1742900657544,0.00132,87232.0,87231.0,0.79918285]
[1742900657746,0.0573108,87233.0,87232.0,0.1719332]
[1742900657953,0.0573108,87233.0,87232.0,0.6725332]
[1742900658251,0.1719325,87233.0,87232.0,0.5359332]
[1742900658460,0.17333251,87233.0,87232.0,0.7859332]
[1742900658657,0.17333251,87233.0,87232.0,0.5059332]
[1742900658854,0.17333251,87233.0,87232.0,0.2659332]
[1742900659155,0.17333251,87233.0,87232.0,0.5099332]
[1742900659357,0.17333251,87233.0,87232.0,0.5199332]
[1742900659542,0.17333251,87233.0,87232.0,0.5249332]
[1742900659945,0.17333251,87233.0,87232.0,0.5549332]
[1742900660356,0.17333251,87233.0,87232.0,0.2749332]
[1742900660559,0.17333251,87233.0,87232.0,0.5149332]
[1742900660857,0.17333251,87233.0,87232.0,0.5549332]
[1742900661058,0.17333251,87233.0,87232.0,0.2749332]
[1742900661258,0.17333251,87233.0,87232.0,0.5549332]
[1742900661452,0.17333251,87233.0,87232.0,0.2749332]
[1742900662661,0.17333251,87233.0,87232.0,0.5349332]
[1742900662961,0.17333251,87233.0,87232.0,0.2749332]
[1742900663164,0.17333251,87233.0,87232.0,0.5549332]
[1742900663469,0.17333251,87233.0,87232.0,0.2749332]
[1742900664162,0.20483251,87233.0,87232.0,0.2749332]
[1742900664359,0.20483251,87233.0,87232.0,0.103]
[1742900664659,0.20483251,87233.0,87232.0,0.0412]
[1742900664858,0.34691251,87233.0,87232.0,0.0096]
[1742900665062,0.37951251,87233.0,87232.0,0.009]
[1742900665959,0.1146322,87225.0,87224.0,0.0612]
[1742900666172,0.1159522,87225.0,87224.0,0.0006]
[1742900666366,0.1777522,87225.0,87224.0,0.0006]
[1742900666856,0.1868756,87225.0,87224.0,0.0006]
[1742900667355,0.1868756,87225.0,87224.0,0.0126]
[1742900668159,0.19589897,87225.0,87224.0,0.0126]
[1742900669862,0.1868756,87225.0,87224.0,0.012]
[1742900672062,0.2426204,87225.0,87224.0,0.012]
[1742900672673,0.1146401,87219.0,87218.0,0.0313]
[1742900672965,0.2279201,87219.0,87218.0,0.0319]
[1742900673167,0.1146441,87216.0,87215.0,0.00045863]
[1742900673356,0.1161241,87216.0,87215.0,0.00045863]
[1742900673557,0.1908475,87216.0,87215.0,0.00045863]
[1742900675571,0.1918475,87216.0,87215.0,0.00045863]
[1742900675872,0.1827241,87216.0,87215.0,0.00045863]
[1742900676266,0.1837241,87216.0,87215.0,0.00045863]
[1742900676964,0.1827241,87216.0,87215.0,0.00045863]
[1742900677161,0.3661999,87216.0,87215.0,0.00045863]
[1742900680765,0.2374689,87216.0,87215.0,0.00045863]
[1742900681972,0.2374689,87216.0,87215.0,0.06345863]
[1742900689868,0.2374689,87216.0,87215.0,0.30345863]
[1742900690073,0.2374689,87216.0,87215.0,0.06345863]
[1742900692171,0.25549129,87216.0,87215.0,0.06345863]
[1742900692578,0.37132178,87216.0,87215.0,0.06345863]
[1742900692776,0.3623002,87216.0,87215.0,0.06345863]
[1742900693270,0.35329939,87216.0,87215.0,0.30345863]
[1742900693578,0.35329939,87216.0,87215.0,0.06345863]
[1742900695576,0.35329939,87216.0,87215.0,0.29345863]
[1742900695879,0.35329939,87216.0,87215.0,0.06345863]
[1742900696175,0.3109466,87216.0,87215.0,0.06345863]
[1742900697684,0.3109466,87216.0,87215.0,0.33345863]
[1742900697979,0.3109466,87216.0,87215.0,0.36515863]
[1742900698177,0.3109466,87216.0,87215.0,0.09515863]
[1742900699078,0.3109466,87216.0,87215.0,0.37515863]
[1742900699279,0.3109466,87216.0,87215.0,0.09515863]
[1742900699583,0.36669946,87216.0,87215.0,0.36515863]
[1742900699781,0.36669946,87216.0,87215.0,0.09515863]
[1742900700179,0.36669946,87216.0,87215.0,0.36515863]
[1742900700483,0.36669946,87216.0,87215.0,0.09515863]
[1742900700778,0.36669946,87216.0,87215.0,0.34515863]
[1742900700991,0.36669946,87216.0,87215.0,0.09515863]
[1742900701176,0.36669946,87216.0,87215.0,0.34515863]
[1742900701377,0.36669946,87216.0,87215.0,0.09515863]
[1742900702068,0.36669946,87216.0,87215.0,0.36515863]
[1742900702276,0.36669946,87216.0,87215.0,0.35515863]
[1742900702883,0.36669946,87216.0,87215.0,0.34515863]
[1742900704184,0.72409834,87216.0,87215.0,0.37515863]
[1742900704483,0.72409834,87216.0,87215.0,0.46980403]
[1742900704687,0.75609834,87216.0,87215.0,0.46980403]
[1742900704880,0.75609834,87216.0,87215.0,0.74980403]
[1742900705381,0.75609834,87216.0,87215.0,0.46980403]
[1742900705771,0.75609834,87216.0,87215.0,0.45980403]
[1742900705979,0.75609834,87216.0,87215.0,0.20980403]
[1742900706885,0.75609834,87216.0,87215.0,0.48980403]
[1742900707383,0.75609834,87216.0,87215.0,0.20980403]
[1742900707581,0.36539946,87216.0,87215.0,0.44980403]
[1742900708190,0.36539946,87216.0,87215.0,0.09515863]
[1742900708380,0.36539946,87216.0,87215.0,0.06345863]
[1742900708575,0.39639946,87216.0,87215.0,0.03115863]
[1742900708881,0.39639946,87216.0,87215.0,0.00045863]
[1742900711679,0.1146546,87208.0,87207.0,0.00017198]
[1742900711985,0.1161346,87208.0,87207.0,0.00017198]
[1742900712289,0.19070621,87208.0,87207.0,0.00017198]
[1742900714882,0.19070621,87208.0,87200.0,0.131]
[1742900714883,0.1146638,87201.0,87200.0,0.131]
[1742900715088,0.4769438,87201.0,87200.0,0.131]
[1742900715285,0.5721438,87201.0,87200.0,0.1]
[1742900718487,0.0573356,87196.0,87192.0,0.00011514]
[1742900718784,0.1146743,87193.0,87192.0,0.00011514]
[1742900718994,0.1161543,87193.0,87192.0,0.00011514]
[1742900719202,0.1801543,87193.0,87192.0,0.00011514]
[1742900720580,0.00148,87193.0,87192.0,0.25011514]
[1742900720781,0.00148,87193.0,87192.0,0.34441514]
[1742900721088,0.1146743,87193.0,87192.0,0.45909024]
[1742900721285,0.1161543,87193.0,87192.0,0.45909024]
[1742900721690,0.1161543,87193.0,87192.0,0.34441514]
[1742900722391,0.1487543,87193.0,87192.0,0.34441514]
[1742900723785,0.1809543,87193.0,87192.0,0.09441514]
[1742900723988,0.1809543,87193.0,87192.0,0.32441514]
[1742900724488,0.1809543,87193.0,87192.0,0.09441514]
[1742900731198,0.1809543,87193.0,87192.0,0.06351514]
[1742900731694,0.23671916,87193.0,87192.0,0.06351514]
[1742900731898,0.23671916,87193.0,87192.0,0.03301514]
[1742900732190,0.26771916,87193.0,87192.0,0.03301514]
[1742900736302,0.26771916,87193.0,87189.0,0.033]
[1742900736303,0.1146782,87190.0,87189.0,0.033]
[1742900736498,0.1146848,87185.0,87184.0,0.0322]
[1742900736687,0.11624481,87185.0,87184.0,0.07714865]
[1742900736887,0.17874481,87185.0,87184.0,0.07714865]
[1742900737795,0.17874481,87185.0,87184.0,0.33714865]
[1742900738000,0.17874481,87185.0,87184.0,0.07714865]
[1742900739000,0.17874481,87185.0,87184.0,0.30714865]
[1742900739304,0.17874481,87185.0,87184.0,0.34714865]
[1742900739497,0.17874481,87185.0,87184.0,0.36874865]
[1742900739698,0.17874481,87185.0,87184.0,0.10874865]
[1742900739892,0.17974481,87185.0,87184.0,0.10874865]
[1742900741106,0.17974481,87185.0,87184.0,0.38874865]
[1742900741107,0.44160552,87185.0,87184.0,0.38874865]
[1742900741399,0.44160552,87185.0,87184.0,0.10874865]
[1742900742390,0.44160552,87185.0,87184.0,0.22343475]
[1742900742798,0.44160552,87185.0,87184.0,0.46343475]
[1742900744801,0.23550967,87185.0,87184.0,0.46343475]
[1742900746104,0.23550967,87185.0,87184.0,0.70343475]
[1742900746402,0.0573291,87206.0,87184.0,0.58874865]
[1742900746604,0.0321,87202.0,87201.0,0.1146638]
[1742900746796,0.03314001,87202.0,87201.0,0.5952638]
[1742900747002,0.0321,87202.0,87201.0,0.3552638]
[1742900747196,0.0321,87202.0,87201.0,0.6052638]
[1742900747404,0.0321,87202.0,87201.0,0.5952638]
[1742900747609,0.0321,87202.0,87201.0,0.3652638]
[1742900747808,0.0321,87202.0,87201.0,0.6052638]
[1742900748008,0.0321,87202.0,87201.0,0.3652638]
[1742900748009,0.3867765,87202.0,87201.0,0.3652638]
[1742900748196,0.38781651,87202.0,87201.0,0.6552638]
[1742900748402,0.38781651,87202.0,87201.0,0.3652638]
[1742900748707,0.35571651,87202.0,87201.0,0.6352638]
[1742900749801,0.35571651,87202.0,87201.0,0.6152638]
[1742900750492,0.35571651,87202.0,87201.0,0.5952638]
[1742900751306,0.35571651,87202.0,87201.0,0.3652638]
[1742900751494,0.35571651,87202.0,87201.0,0.6052638]
[1742900751697,0.35571651,87202.0,87201.0,0.61689293]
[1742900752507,0.35571651,87202.0,87201.0,0.37689293]
[1742900752808,0.35571651,87202.0,87201.0,0.60689293]
[1742900753103,0.11570381,87202.0,87201.0,0.60689293]
[1742900754503,0.11570381,87202.0,87201.0,0.37689293]
[1742900754712,0.11570381,87202.0,87201.0,0.65689293]
[1742900755610,0.11570381,87202.0,87201.0,0.60689293]
[1742900755906,0.11570381,87202.0,87201.0,0.63689293]
[1742900756301,0.00104001,87202.0,87201.0,0.64689293]
[1742900756501,0.00108,87202.0,87201.0,0.70422473]
[1742900756704,0.32184095,87202.0,87201.0,0.70422473]
[1742900757214,0.32184095,87202.0,87201.0,0.71422473]
[1742900757810,0.32184095,87202.0,87201.0,0.43422473]
[1742900758007,0.32184095,87202.0,87201.0,0.71482473]
[1742900758207,0.20717845,87202.0,87201.0,0.71482473]
[1742900758613,0.32184095,87202.0,87201.0,0.71482473]
[1742900759609,0.32184095,87202.0,87201.0,0.75752473]
[1742900759610,0.1157425,87202.0,87201.0,0.75752473]
[1742900760411,0.20609845,87217.0,87205.0,0.0573292]
[1742900760615,0.32074285,87217.0,87216.0,0.1146441]
[1742900760815,0.32146285,87217.0,87216.0,0.7360441]
[1742900761028,0.32146285,87217.0,87216.0,0.9960441]
[1742900761029,0.38276285,87217.0,87216.0,0.9960441]
[1742900761227,0.23701845,87217.0,87216.0,1.0160441]
[1742900761425,0.20681845,87217.0,87216.0,1.0477441]
[1742900761625,0.32074115,87217.0,87216.0,1.0477441]
[1742900761831,0.32146115,87217.0,87216.0,1.0477441]
[1742900762033,0.20681845,87217.0,87216.0,1.0477441]
[1742900762535,0.20609845,87217.0,87216.0,2.5477441]
[1742900763233,0.20809845,87217.0,87216.0,2.5477441]
[1742900763633,0.002,87217.0,87216.0,2.5477441]
[1742900764229,0.1166427,87217.0,87216.0,2.5477441]
[1742900764428,0.1196427,87217.0,87216.0,2.5477441]
[1742900764835,0.1196427,87217.0,87216.0,1.0477441]
[1742900765029,0.1204027,87217.0,87216.0,1.0477441]
[1742900765226,0.1840027,87217.0,87216.0,1.0477441]
[1742900765429,0.1832427,87217.0,87216.0,1.0477441]
[1742900766034,0.1832427,87217.0,87216.0,1.0377441]
[1742900766234,0.1839627,87217.0,87216.0,1.0692441]
[1742900766736,0.1839627,87217.0,87216.0,1.0392441]
[1742900767033,0.1839627,87217.0,87216.0,0.7992441]
[1742900767832,0.1839627,87217.0,87216.0,1.0792441]
[1742900768829,0.1839627,87217.0,87216.0,0.7992441]
[1742900769027,0.1839627,87217.0,87216.0,1.0492441]
[1742900771335,0.1839627,87217.0,87216.0,0.7992441]
[1742900771536,0.1839627,87217.0,87216.0,1.0492441]
[1742900771734,0.1832427,87217.0,87216.0,1.0492441]
[1742900773733,0.1840027,87217.0,87216.0,1.0492441]
[1742900775128,0.1840027,87217.0,87216.0,0.7992441]
[1742900776137,0.1840027,87217.0,87216.0,0.9977441]
[1742900776343,0.1840027,87217.0,87216.0,0.7677441]
[1742900776638,0.1840027,87217.0,87216.0,0.3614]
[1742900777736,0.1840027,87217.0,87216.0,0.6214]
[1742900778040,0.1840027,87217.0,87216.0,0.6114]
[1742900778238,0.19299933,87217.0,87216.0,0.3614]
[1742900778837,0.20461369,87217.0,87216.0,0.6314]
[1742900779233,0.20461369,87217.0,87216.0,0.3614]
[1742900780836,0.19299933,87217.0,87216.0,0.3614]
[1742900782043,0.19299933,87217.0,87216.0,0.6114]
[1742900782246,0.19299933,87217.0,87216.0,0.3614]
[1742900782440,0.19299933,87217.0,87208.0,0.00017198]
[1742900782441,0.1146533,87209.0,87208.0,0.00017198]
[1742900782645,0.11553331,87209.0,87208.0,0.00017198]
[1742900782843,0.12452994,87209.0,87208.0,0.00017198]
[1742900783037,0.18822994,87209.0,87208.0,0.00017198]
[1742900783640,0.18922994,87209.0,87208.0,0.00017198]
[1742900783946,0.18023331,87209.0,87208.0,0.00017198]
[1742900784332,0.18023331,87209.0,87208.0,0.27017198]
[1742900784532,0.18023331,87209.0,87208.0,0.00077198]
[1742900784737,0.18123331,87209.0,87208.0,0.24017198]
[1742900785039,0.18123331,87209.0,87208.0,0.00077198]
[1742900785235,0.18123331,87209.0,87208.0,0.00017198]
[1742900786747,0.23698421,87209.0,87208.0,0.25017198]
[1742900786956,0.23698421,87209.0,87208.0,0.36482658]
[1742900787344,0.23698421,87209.0,87208.0,0.55570658]
[1742900787746,0.23698421,87209.0,87208.0,0.61910658]
[1742900788039,0.12233091,87209.0,87208.0,2.11910658]
[1742900788239,0.0577509,87209.0,87208.0,2.11910658]
[1742900788447,0.0573241,87213.0,87212.0,0.0573246]
[1742900788753,0.0573241,87213.0,87212.0,0.5479246]
[1742900788937,0.1220241,87213.0,87212.0,0.5479246]
[1742900789134,0.1220241,87213.0,87212.0,2.1113246]